Workbook

Sheet SUMMARY
A2: ACTIVITY BASED PRICING SCHEDULE – CLEANING COST SUMMARY
B3: UOM | C3: TOTAL MONTHLY AMOUNT | D3: FINAL TOTAL AMOUNT -
A4: DESCRIPTION | D4: 6
D5: MONTHS
A6: 1.1. Permits/Induction | B6: Once-off | C6: =Permit!F8 -> R 8,000.00 | D6: =C6 -> R 8,000.00
A7: 1.2. Administration overheads/expenses breakdown - monthly costs | B7: Monthly | C7: =+'MANAGEMENT FEE'!F14 -> R 2,500.00 | D7: =C7*$D$4 -> R 15,000.00
A8: 1.3. Uniforms* [specify replacement cycle in months] | B8: Monthly | C8: =UNIFORMS!J8 -> R 0.00 | D8: R 0.00
A9: 1.4. Management and administration personnel cost | B9: Monthly | C9: ='MANAGEMENT AND ADMIN PERSONEL'!I11 -> R 0.00 | D9: R 0.00
A10: 1.5. General Cleaning Labour - New Rate | B10: Monthly | C10: ='GENERAL CLEANING - LABOUR '!L40 -> R 0.00 | D10: R 0.00
A11: 1.6. Machinery costs | B11: Monthly | C11: =MACHINERY!H14 -> R 0.00 | D11: R 0.00
A12: 1.7. Equipment costs | B12: Monthly | C12: =EQUIPMENT!F26 -> R 0.00 | D12: R 0.00
A13: 1.8. Chemicals & Consumables | B13: Monthly | C13: ='Chemicals & Consumables'!F52 -> R 5,000.00 | D13: R 30,000.00
A14: 1.9. Hygiene services | B14: Monthly | C14: =HYGIENE!F17 -> R 10,000.00 | D14: R 60,000.00
A15: 1.10. High Access Cleaning Equipment | B15: Monthly | C15: ='High Access Cleaning Equipment'!I7 -> R 0.00 | D15: R 0.00
A16: 1.11. High Access Cleaning Labour costs | B16: Monthly | C16: ='High Access Cleaning Labour'!J12 -> R 0.00 | D16: R 0.00
A19: Total (Excl. VAT) | C19: =SUM(C6:C18) -> R 25,500.00 | D19: =SUM(D6:D18) -> R 113,000.00
A21: · Bidders must only price in accordance with the pricing schedule above, this will enable ACSA to compare priced offers.
A22: · Failure to submit a priced offer using the prescribed schedule will make the bid liable for disqualification.
A24: Total contract value
A25: Period | C25: Rand value | D25: Rand value
B26: Annual escalation
A27: Year 0 to 1 | B27: 0% | C27: =#REF! ->  | D27: =#REF! -> 
A28: Year 1 to 2 | B28: 6% | C28: =C27*1.06 ->  | D28: =D27*1.06 -> 
A29: Year 2 to 3 | B29: 6% | C29: =C28*1.06 -> 
A30: Year 3 to 4 | B30: 6%
A31: Year 4 to 5 | B31: 6%
A32: Total contract value for 5 year contract(to be carried to the Form of offer) | C32: =SUM(C27:C31) ->  | D32: =SUM(D27:D31) -> 
A33: · Bidders are required to carry down the annual contract value from the Activity Based price Schedule – Cleaning Cost Summary. The value must be carried down under period Year 0 to 1.
A34: · Escalations to be added to the annual contract value going forward will be approximately 6% per annum. This will be subject to subject to published Consumer Price Index (CPI) increases.
A35: · Price adjustments will take place on the anniversary of the contract each year, however the escalation will not be an automatic adjustment. ACSA reserves the right to negotiate such contract price adjustment.
A36: · Bidders are required to submit proof of changes in prices as supporting documentation for the request for contract price adjustment. Supporting documentation may include: Bargaining council increase confirmation, Sectoral determination gazettedlabour increase, supplier increase letters etc..
A37: Pricing Schedule Approval for Cleaning SLA - Period = | B37: =D4 -> 6 | C37: Months
B39: ACSA | C39: Bidder | D39: Bidder
A40: Name
A41: Positions
A42: Signature
A43: Date

Sheet Permit
A1: 1. Preliminary, Generals & Contract Administration
A2: CPI | B2: 0.00% | C2: 0.00% | D2: 0.00%
A3: 1.1. Permit Costs – Once Off
A4: Description | B4: UOM | C4: Qty | D4: Provisional Sum | E4: Total Amount Per month | F4: Rate | G4: Total Amount Per annum - Remainder | H4: Service Manager Comments (ACSA) | I4: Bidder Comments
A5: Personnel Permits | B5: Per Person | C5: 1 | D5: R 3,000.00 | E5: =D5*C5 -> R 3,000.00 | F5: =D5 -> R 3,000.00 | G5: =E5-F5 -> R 0.00
A6: Airside Induction Course - for the cleaners and Shift Supervisors | B6: Per Person | C6: 1 | D6: R 3,000.00 | E6: R 3,000.00 | F6: =D6 -> R 3,000.00 | G6: =E6-F6 -> R 0.00
A7: Airside induction course - for Management. All Supervisorsand Managers and at least one office based senior management person who will attend scheduled meetings and inspections | B7: Per Person | C7: 1 | D7: R 2,000.00 | E7: R 2,000.00 | F7: R 2,000.00 | G7: R 0.00
A8: Total | D8: =SUM(D5:D7) -> R 8,000.00 | E8: =SUM(E5:E7) -> R 8,000.00 | F8: =SUM(F5:F7) -> R 8,000.00 | G8: =SUM(G5:G7) -> R 0.00
A10: · Please provide proof of payment prior to claiming for this on the payment certificate
C17: PAGE 3

Sheet MANAGEMENT FEE
A1: 1.2. Management Fee - Administration overheads/expenses breakdown – Monthly Costs
A2: CPI | B2: 0.00% | C2: 0.00% | D2: 0.00%
A3: Please state the management fee as percentage of total contract value ……...%. Absolute value, R…………
A5: Administration activity | B5: UOM | C5: Quantity (Required) | D5: Rate | E5: Unit cost | F5: Total monthly fee | G5: Service Manager Comments (ACSA) | H5: Bidder Comments
A6: and/or
A7: Overheads/expenses
A8: Insurance | B8: Monthly | C8: 1 | E8: =D8 -> R 0.00 | F8: =E8*C8 -> R 0.00
A9: Safety file | B9: Once-off | C9: 1 | E9: =D9 -> R 0.00 | F9: =E9*C9 -> R 0.00
A10: Fee for OHS requirements | B10: Once-off | C10: 1 | E10: R 0.00 | F10: R 0.00 | G10: Bidder to provide detailed list with pricing
A11: Biometric time and attendance system | B11: Monthly | C11: 1 | E11: R 0.00 | F11: R 0.00
A12: Provisional Sum office rental | B12: Monthly | C12: 1 | E12: R 2,500.00 | F12: =E12*C12 -> R 2,500.00 | G12: Bidder will apply to ACSA commertial after award
A13: Other: Specified by bidder | B13: Monthly | C13: 1 | E13: R 0.00 | F13: R 0.00 | G13: Bidder to provide detailed list with pricing
A14: Total | F14: =SUM(F8:F13) -> R 2,500.00
A15: · Please provide a management fee breakdown in terms of related direct/indirect overheads and expenses
A16: · #Please provide the equivalent (Pro Rata) monthly charge
A17: · #In order to claim for the safety file = a valid permit to work must be issued by the ACSA safety department
A18: · #In order to claim for a biometric system - the reporst produced by such system must be in the formas defined by the service manager which will facilitate efficient evaluation of the payment certificate with reference to labour costs

Sheet UNIFORMS
A1: 1.3. Uniforms – Monthly (replacement cycle in months every 24 months
A2: CPI | B2: 0.00% | C2: 0.00% | D2: 0.00% | L2: 100
B3: UOM | C3: Quantity (Required) | D3: Quantity of overalls per individual | G3: Total sets of full uniform (Required) | H3: Quantity (Required) | I3: Rate / Qty | J3: Total monthly fee# | K3: Total Yearly fee# | L3: Service Manager Comments (ACSA) | M3: Bidder Comments
A4: General Cleaners | B4: No | C4: 19 | D4: 2 | G4: 19 | H4: 19 | J4: =H4*I4 -> R 0.00 | K4: =J4*12 -> R 0.00 | L4: Full uniform = Top & Bottom (x2) + reflector (x1) + Safety shoes (x1). Only actuals will be paid for.
A5: Administration & Management Staff | B5: No | C5: 2 | D5: 2 | G5: 2 | H5: 2 | J5: =H5*I5 -> R 0.00 | K5: =J5*12 -> R 0.00
A6: Supervisors | B6: No | C6: 2 | D6: 2 | G6: 2 | H6: 2 | J6: R 0.00 | K6: R 0.00
A8: Total | J8: =SUM(J4:J7) -> R 0.00 | K8: =SUM(K4:K7) -> R 0.00
A10: The number of uniforms required will be based on the total number of staff, which includes supervisors, all cleaners, including relievers and anyone else required
A11: Please use the replacement cycle specified i.e 2 pairs per person every 24 months
A12: There are other areas that will require a shorter replacement cycle e.g outside areas
A13: The uniform design and fabric will require ACSA approval
A14: Please provide the equivalent (Pro rata monthly Charge
A15: Please allow for relievers in calculating number of uniforms
A16: In order to claim for these overalls a monthly overall sign-off sheet must be submitted which will justify the quantities claimed for

Sheet MANAGEMENT AND ADMIN PERSONEL
A1: 1.4. Management & Administration Personnel
A2: CPI | B2: 0.00% | C2: 0.00% | D2: 0.00%
A3: Description of management | B3: Hours per month per resource | C3: Resource rate/hour | D3: Resource rate/hour | E3: Total Amount per Resource per Month | G3: Number of Resources | H3: Monthly Rate per Resource (Total amount per resource per month) | I3: Total monthly fee | J3: Service Manager Comments (ACSA) | K3: Bidder Comments
B4: Required
B5: (Measured in Number)
A6: Site Manager (on-site) | B6: 184.03 | C6: 0 | D6: =C6 -> R0.00 | E6: =C6*B6 -> R0.00 | G6: 1 | H6: =E6 -> R 0.00 | I6: =H6*G6 -> R 0.00
A7: Shift Supervisor 1 (6:00am – 14:00pm) (optional) | B7: 227.33 | C7: 0 | D7: =C7 -> R0.00 | E7: =C7*B7 -> R0.00 | G7: 1 | H7: =E7 -> R 0.00 | I7: =H7*G7 -> R 0.00
A8: Shift Supervisor 2 (14:00pm – 22:00pm) (optional) | B8: 227.33 | C8: 0 | D8: R0.00 | E8: R0.00 | G8: 1 | H8: =E8 -> R 0.00 | I8: =H8*G8 -> R 0.00
A9: Administrator (storeman activities) | B9: 184.03 | C9: 0 | D9: R0.00 | E9: R0.00 | G9: 1 | H9: R 0.00 | I9: =H9*G9 -> R 0.00
A11: Total | E11: =SUM(E6:E10) -> R0.00 | H11: =SUM(H6:H10) -> R 0.00 | I11: =SUM(I6:I10) -> R 0.00
A12: Shift times are specified in C3
A13: Please provide a management and administration cost breakdown in terms of human resource cost
A14: This fee will be inclusive of public holidays, weekends and overtime and night shift allowance for night shift workers
A15: Payment will be subject to proven costs
A16: There should always be a full staff compliment for the shifts. The onus will be upon the service provider to ensure that the shift is serviced without employees working overtime
A17: On every weekend there must be a senior duty manager on-site who can either be the site manager or someone senior from Operations office
A18: Hourly Calculations
A19: Hours per week will be the service delivery time rendered to ACSA by the contractor and not necessarily the total hours for a shift of workers. ACSA has taken into consideration that the total number of hours worked by a cleaner per week are regulated and capped.
A20: Shift operational hours to cover:
A21: Morning Shift: | B21: Monday to Sunday | C21: 06H00-14H00
A22: Afternoon Shift: | B22: Monday to Sunday | C22: 14H00 - 06H00
A23: Site Manager Shift: | B23: Monday to Friday | C23: 07H00-16H00
A24: Administrator Shift: | B24: Monday to Friday | C24: 07H00-16H00
A25: This is applicable to all public holidays

Sheet GENERAL CLEANING - LABOUR
A2: 1.5 General Labour Costs
A4: General Labour by Shift | B4: Initial & Surname | C4: Hours per month per resource (Required) | D4: Resource rate/hour | E4: Resource rate/hour | F4: Total Amount per Resource per Month | H4: Number of Resources (Required) | I4: Number of Resources (Actual) | J4: Monthly Rate per Resource (Total amount per resource per month) | K4: Total monthly fee | L4: Comparision Between Total hours worked and toal resources required | M4: Service Manager Comments (ACSA) | N4: Bidder Comments
A7: Morning Shift (06:00am–14:00pm Mon–Sun) General Labourer 1 | C7: 227.33 | E7: =D7 -> R 0.00 | F7: =E7*C7 -> R 0.00 | H7: 1 | I7: 1 | J7: =F7 -> R 0.00 | K7: =J7*I7 -> R 0.00
A8: Morning Shift (06:00am–14:00pm Mon–Sun) General Labourer 2 | C8: 227.33 | E8: =D8 -> R 0.00 | F8: =E8*C8 -> R 0.00 | H8: 1 | I8: 1 | J8: R 0.00 | K8: R 0.00
A9: Morning Shift (06:00am–14:00pm Mon–Sun) General Labourer 3 | C9: 227.33 | E9: R 0.00 | F9: R 0.00 | H9: 1 | I9: 1 | J9: R 0.00 | K9: R 0.00
A10: Morning Shift (06:00am–14:00pm Mon–Sun) General Labourer 4 | C10: 227.33 | E10: R 0.00 | F10: R 0.00 | H10: 1 | I10: 1 | J10: R 0.00 | K10: R 0.00
A11: Morning Shift (06:00am–14:00pm Mon–Sun) General Labourer 5 | C11: 227.33 | E11: R 0.00 | F11: R 0.00 | H11: 1 | I11: 1 | J11: R 0.00 | K11: R 0.00
A12: Morning Shift (06:00am–14:00pm Mon–Sun) General Labourer 6 | C12: 227.33 | E12: R 0.00 | F12: R 0.00 | H12: 1 | I12: 1 | J12: R 0.00 | K12: R 0.00
A13: Morning Shift (06:00am–14:00pm Mon–Sun) General Labourer 7 | C13: 227.33 | E13: R 0.00 | F13: R 0.00 | H13: 1 | I13: 1 | J13: R 0.00 | K13: R 0.00
A14: Morning Shift (06:00am–14:00pm Mon–Sun) General Labourer 8 | C14: 227.33 | E14: R 0.00 | F14: R 0.00 | H14: 1 | I14: 1 | J14: R 0.00 | K14: R 0.00
A15: Morning Shift (06:00am–14:00pm Mon–Sun) General Labourer 9 | C15: 227.33 | E15: R 0.00 | F15: R 0.00 | H15: 1 | I15: 1 | J15: R 0.00 | K15: R 0.00
A16: Morning Shift (06:00am–14:00pm Mon–Sun) General Labourer 10 | C16: 0 | E16: R 0.00 | F16: R 0.00 | H16: 0 | I16: 1 | J16: R 0.00 | K16: R 0.00
A17: Morning Shift (06:00am–14:00pm Mon–Sun) General Labourer 11 | C17: 0 | E17: R 0.00 | F17: R 0.00 | H17: 0 | I17: 1 | J17: R 0.00 | K17: R 0.00
A18: Morning Shift (06:00am–14:00pm Mon–Sun) General Labourer 12 | C18: 0 | E18: R 0.00 | F18: R 0.00 | H18: 0 | I18: 0 | J18: R 0.00 | K18: R 0.00
A19: Total | C19: =SUM(C7:C18) -> 2045.97 | D19: =SUM(D7:D18) -> 0 | E19: =SUM(E7:E18) -> R 0.00 | F19: =SUM(F7:F18) -> R 0.00 | H19: =SUM(H7:H18) -> 9 | I19: 11 | J19: 0 | K19: 0 | L19: =(F19+K19)/2 -> 0
A21: Afternoon Shift (14:00am–22:00pm Mon–Sun) Labourer 1 | C21: 227.33 | E21: =D21 -> R 0.00 | F21: =E21*C21 -> R 0.00 | H21: 1 | I21: 1 | J21: =F21 -> R 0.00 | K21: =J21*I21 -> R 0.00
A22: Afternoon Shift (14:00am–22:00pm Mon–Sun) Labourer 2 | C22: 227.33 | E22: R 0.00 | F22: R 0.00 | H22: 1 | I22: 1 | J22: R 0.00 | K22: R 0.00
A23: Afternoon Shift (14:00am–22:00pm Mon–Sun) Labourer 3 | C23: 227.33 | E23: R 0.00 | F23: R 0.00 | H23: 1 | I23: 1 | J23: R 0.00 | K23: R 0.00
A24: Afternoon Shift (14:00am–22:00pm Mon–Sun) Labourer 4 | C24: 227.33 | E24: R 0.00 | F24: R 0.00 | H24: 1 | I24: 1 | J24: R 0.00 | K24: R 0.00
A25: Afternoon Shift (14:00am–22:00pm Mon–Sun) Labourer 5 | C25: 227.33 | E25: R 0.00 | F25: R 0.00 | H25: 1 | I25: 1 | J25: R 0.00 | K25: R 0.00
A26: Afternoon Shift (14:00am–22:00pm Mon–Sun) Labourer 6 | C26: 227.33 | E26: R 0.00 | F26: R 0.00 | H26: 1 | I26: 1 | J26: R 0.00 | K26: R 0.00
A27: Afternoon Shift (14:00am–22:00pm Mon–Sun) Labourer 7 | C27: 227.33 | E27: R 0.00 | F27: R 0.00 | H27: 1 | I27: 1 | J27: R 0.00 | K27: R 0.00
A28: Afternoon Shift (14:00am–22:00pm Mon–Sun) Labourer 8 | C28: 227.33 | E28: R 0.00 | F28: R 0.00 | H28: 1 | I28: 1 | J28: R 0.00 | K28: R 0.00
A29: Afternoon Shift (14:00am–22:00pm Mon–Sun) Labourer 9 | C29: 227.33 | E29: R 0.00 | F29: R 0.00 | H29: 1 | I29: 1 | J29: R 0.00 | K29: R 0.00
A30: Afternoon Shift (14:00am–22:00pm Mon–Sun) Labourer 10 | C30: 0 | E30: R 0.00 | F30: R 0.00 | H30: 0 | I30: 1 | J30: R 0.00 | K30: R 0.00
A31: Afternoon Shift (14:00am–22:00pm Mon–Sun) Labourer 11 | C31: 0 | E31: R 0.00 | F31: R 0.00 | H31: 0 | I31: 1 | J31: R 0.00 | K31: R 0.00
A32: Afternoon Shift (14:00am–22:00pm Mon–Sun) Labourer 12 | C32: 0 | E32: R 0.00 | F32: R 0.00 | H32: 0 | I32: 1 | J32: R 0.00 | K32: R 0.00
A33: Total | C33: =SUM(C21:C32) -> 2045.97 | D33: =SUM(D21:D32) -> 0 | E33: =SUM(E21:E32) -> R 0.00 | F33: =SUM(F21:F32) -> R 0.00 | H33: =SUM(H21:H32) -> 9 | I33: 12 | J33: 0 | K33: 0 | L33: =(F33+K33)/2 -> 0
A35: Day Shift - Admin (06:00am–16:00pm Mon–Fri) Labourer 1 | C35: 184.03 | E35: =D35 -> R 0.00 | F35: =E35*C35 -> R 0.00 | H35: 1 | I35: 1 | J35: R 0.00 | K35: R 0.00
A36: Day Shift - Admin (06:00am–16:00pm Mon–Fri) Labourer 2 | C36: 0 | E36: R 0.00 | F36: R 0.00 | H36: 1 | I36: 0 | J36: R 0.00 | K36: R 0.00
A37: Total | C37: =SUM(C35) -> 184.03 | D37: =SUM(D35:D36) -> 0 | E37: =SUM(E35:E36) -> R 0.00 | F37: =SUM(F35:F36) -> R 0.00 | H37: =SUM(H35) -> 1 | I37: =SUM(I35) -> 1 | K37: =SUM(K35:K36) -> R 0.00 | L37: =(F37+K37)/2 -> 0
A40: Total Final | C40: =SUM(C19+C33+C37) -> 4275.97 | D40: =SUM(D19+D33+D37) -> 0 | F40: =SUM(F19+F33+F37) -> R 0.00 | H40: =SUM(H19+H33+H37) -> 19 | I40: =SUM(I19+I33+I37) -> 24 | K40: =SUM(K19+K33+K37) -> R 0.00 | L40: =SUM(L19+L33+L37) -> R 0.00
A42: Comparision of hours and totals
A43: The above implies that all the labourers together have to work a total of 4275.97 hours. This need to corrispond to the total hours which is reported by the biometric system
A44: In the event that there is a difference (either higher or lower) then the contractor must explain in detail why
A45: In the event that the values are lower a risk will be lodged and only the actual hours will be paid.
A46: In the event that is higher it will be for the contracto's own account as it clearly stipulates below the guidelines with reference to hourly calculations
A48: Please provide a management fee breakdown in terms of human resource cost
A49: This fee will be inclusive of public holidays, weekends and overtime
A50: Payment will be subject to proven costs - monthly reconciliation of invoice to staff attendance
A51: Hourly Calculations
A52: Hours per week are the service delivery time rendered to ACSA by the Contractor and not necessarily the total hours worked by the same shift of workers. ACSA has taken into consideration that the total number of hours worked by a cleaner are regulated and capped.
A53: Please note that ACSA reserves the right to revise the number of staff requirements in line with changing operational requirements.
A58: 2.2. Cleaning Service Labour Rate breakdown
A60: Description | E60: Rate
E61: General | F61: Supervisor/ | G61: Storeman | H61: Administrator | I61: Administrator | J61: Shift Managers | K61: Contract Manager | L61: Contract Manager
E62: Cleaners/ | F62: Team
E63: Toilets | F63: Leaders
E64: Attendants
A65: Basic Salary
A66: Hourly Rate | C66: 40 hours a week | D66: 40 hours a week
A67: Daily Rate | C67: 8 hours a day | D67: 8 hours a day
A68: Weekly Wage Cost | C68: Hourly wage x 40 hours | D68: Hourly wage x 40 hours
A69: Monthly Wage Cost | C69: 4.33 weeks a month | D69: 4.33 weeks a month
A70: Provisions
A71: Annual Leave Provisions | C71: 15 Days per year | D71: 15 Days per year
A72: Sick Pay | C72: 10 Days per year | D72: 10 Days per year
A73: Family Responsibility Leave | C73: 3 Days per year | D73: 3 Days per year
A74: Other
A75: Pension / Provident Fund | C75: 5.25% Contribution Monthly | D75: 5.25% Contribution Monthly
A76: Bonus | C76: 4.33 Weeks for a full 12 Months | D76: 4.33 Weeks for a full 12 Months
A77: Severance Pay | C77: 1,92% | D77: 1,92%
A78: COID | C78: 1.6% of total monthly wage | D78: 1.6% of total monthly wage
A79: UIF | C79: 1% of basic monthly wage | D79: 1% of basic monthly wage
A80: Medical Aid
A81: Overtime
A82: Skills Deployment Levy | C82: 1% of monthly wage | D82: 1% of monthly wage
A83: Operators Allowance
A84: Other Benefits
A86: Monthly Total
A87: Hourly Rate
A89: · The escalation will be in line with the annual sectorial determination rates
A90: · Leave blank where non-applicable
A91: · An allowance for relievers must be made on the rate quoted
A92: · This fee will be inclusive of public holidays, weekends and overtime
E95: PAGE 7

Sheet MACHINERY
A2: CPI | B2: 0.00% | C2: 0.00% | D2: 0.00%
A3: 1.1 General Cleaning - Machinery cost breakdown
A5: Specification | B5: New | C5: Used | D5: Manufacturer /model | E5: Quantity (Required) | F5: Monthly rate/unit | G5: Monthly rate/unit | H5: Total monthly cost | I5: Service Manager Comments (ACSA) | J5: Bidder Comments
A6: Walk behind scrubber | B6: X | D6: Tennant T500 | E6: 2 | G6: =F6 -> R0.00 | H6: =G6*E6 -> R 0.00
A7: Upright Industrial Vacuum Cleaners | B7: X | D7: Nilfisk VU500 15 INCH | E7: 1 | G7: R0.00 | H7: R 0.00
A8: Industrial Wet & Dry Vacuum Cleaners (40lt) | B8: X | D8: Ghibli AS40 Wet & Dry Vacuum | E8: 2 | G8: R0.00 | H8: R 0.00
A9: Brushboy/Floorboy (Pavements) | B9: X | D9: Tennant S3 Push Sweeper | E9: 1 | G9: R0.00 | H9: R 0.00
A10: Dual speed Buffing Machines | B10: X | D10: Ghibli Dual Speed Buffing Machine | E10: 2 | G10: R0.00 | H10: R 0.00
A11: Push Sweepers | B11: X | D11: Tennant S3 Push Sweeper | E11: 2 | G11: R0.00 | H11: R 0.00
A12: Other | B12: x | E12: 1 | G12: =F12 -> R0.00 | H12: =G12*E12 -> R 0.00 | I12: Bidder to specify and motivate why?
A13: Other | B13: x | E13: 1 | G13: R0.00 | H13: R 0.00 | I13: Bidder to specify and motivate why?
A14: Total | G14: =SUM(G6:G13) -> R 0.00 | H14: =SUM(H6:H13) -> R 0.00
A16: · All machinery being provided on the contract must still be within its serviceable life and used in accordance with the Service Levels outlined in Section C4. Annexure C. Payments will be made based on the application of these Service Levels.
A17: · In the event that any machinery breaks down, the said machinery shall be replaced in line with agreed SLAs at the rate quoted in this schedule.
A18: · Rate per month should include service and maintenance costs of the machinery for the duration of the contract as no additional charges will be accepted.
C21: PAGE 9

Sheet EQUIPMENT
A2: CPI | B2: 0.00% | C2: 0.00% | D2: 0.00%
A3: 1.7 General Cleaning Equipment Cost Breakdown
A4: Specification | B4: Replacement Cycle(months) | C4: Quantity (Required) | D4: Rate | E4: Rate | F4: Total monthly cost | G4: Service Manager Comments (ACSA) | H4: Bidder Comments
A5: Long Handle Dust Pans including whisk brooms | B5: 12 | C5: 15 | E5: =D5 -> R0.00 | F5: =E5*C5 -> R 0.00
A6: Long Feather Dusters | B6: 3 | C6: 5 | E6: =D6 -> R0.00 | F6: =E6*C6 -> R 0.00 | G6: High ceilings in the corridoors
A7: Short Feather Dusters | B7: 1 | C7: 10 | E7: R0.00 | F7: R 0.00
A8: Microfibre Mops | B8: 1 | C8: 18 | E8: R0.00 | F8: R 0.00
A9: Window Squeegee’s with tele poles | B9: 2 | C9: 5 | E9: R0.00 | F9: R 0.00
A10: Big Rectangular Buckets for Window Squeegees | B10: 12 | C10: 5 | E10: R0.00 | F10: R 0.00
A11: Metal Scrapers | B11: 6 | C11: 6 | E11: R0.00 | F11: R 0.00
A12: Scrubbing Brushes &Scourers | B12: 6 | C12: 18 | E12: R0.00 | F12: R 0.00
A13: Pulse Mops | B13: 12 | C13: 18 | E13: R0.00 | F13: R 0.00
A14: Spray Bottles 750ml | B14: 12 | C14: 18 | E14: R0.00 | F14: R 0.00
A15: 10 Step/ approximately 3m high Mount Ladder | B15: 24 | C15: 1 | E15: R0.00 | F15: R 0.00
A16: Ladders 3m high | B16: 24 | C16: 1 | E16: R0.00 | F16: R 0.00
A17: Colour coded split buckets on wheels with wringer | B17: 18 | C17: 18 | E17: R0.00 | F17: R 0.00
A18: Aluminium long handle jumbo mops (long hair) | B18: 3 | C18: 18 | E18: R0.00 | F18: R 0.00
A19: Toilet kit (portable) public areas/high traffic | B19: 3 | C19: 10 | E19: R0.00 | F19: R 0.00
A20: Janitorial Trolleys (twin bucket) | B20: 24 | C20: 18 | E20: R0.00 | F20: R 0.00
A21: 30m x 2mm Extension cords | B21: 12 | C21: 5 | E21: R0.00 | F21: R 0.00
A22: Big outdoor brooms hard and soft bristles | B22: 2 | C22: 10 | E22: R0.00 | F22: R 0.00
A23: Wet Floor Signs | B23: 24 | C23: 18 | E23: R0.00 | F23: R 0.00
A24: Toilet Brushes (+ Holders) located in each cubical | B24: 6 | C24: 63 | E24: R0.00 | F24: R 0.00
A25: Maslin Tools | B25: 24 | C25: 10 | E25: R0.00 | F25: R 0.00
A26: Total | F26: =SUM(F5:F24) -> R 0.00
A28: · Rate is for the supply of new. No monthly prorata rate for leasing the equipment is applicable. Quantities are just an indicator / minimum. The onus is upon the service provider to ensure availability of sufficient quantities of equipment at all times
A29: · Equipment will be replaced when required. The contractor will supply new equipment. Replacement of equipment will be approved by the Service Manager after a condition assessment.
A30: Please note that ACSA reserves the right to revise the number of staff requirements in line with changing operational requirements.

Sheet Chemicals & Consumables
A1: 1.8 List of Chemicals and Consumables
A2: CPI | B2: 0.00% | C2: 0.00% | D2: 0.00% | J2: 100
A3: DESCRIPTION | B3: Unit | C3: Quantity (Required) | D3: Rate | E3: Rate | F3: Monthly Cost | G3: Service Manager Comments (ACSA) | H3: Bidder Comments
A4: Chemicals
A5: Approved list of chemicals
A6: Prosan per 5lt | B6: Each | C6: 12 | E6: =D6 -> R 0.00 | F6: =E6*C6 -> R0.00
A7: Probio per 5lt | B7: Each | C7: 12 | E7: R 0.00 | F7: R0.00
A8: Proscrub scrubber per 5lt | B8: Each | C8: 12 | E8: R 0.00 | F8: R0.00
A9: Procal Urinal cleaner per 5lt | B9: Each | C9: 12 | E9: R 0.00 | F9: R0.00
A10: Progen (Window cleaner) per 5lt | B10: Each | C10: 12 | E10: R 0.00 | F10: R0.00
A11: Spotter per 5lt | B11: Each | C11: 2 | E11: R 0.00 | F11: R0.00
A12: Liquid hand soap per 5lt | B12: Each | C12: 12 | E12: R 0.00 | F12: R0.00
A13: 3M stainless steel polish | B13: Each | C13: 6 | E13: R 0.00 | F13: R0.00
A14: Furniture polish (no oil furniture polish) | B14: Each | C14: 24 | E14: R 0.00 | F14: R0.00
A15: Elfspray per 20 lt (Mondo floor cleaner where applicable) | B15: Each | C15: 6 | E15: R 0.00 | F15: R0.00
A16: Traffic Lane for carpets per 20 lt | B16: Each | C16: 5 | E16: =D16 -> R 0.00 | F16: =E16*C16 -> R0.00
A17: Other | B17: Each | C17: 0 | E17: R 0.00 | F17: R0.00
A18: Other | B18: Each | C18: 0 | E18: R 0.00 | F18: R0.00
A19: Other | B19: Each | C19: 0 | E19: R 0.00 | F19: R0.00
A20: Total | F20: =SUM(F6:F19) -> R0.00
A22: DESCRIPTION | B22: Unit | C22: Quantity (Required) | D22: Rate | E22: Rate | F22: Monthly Cost
A23: Consumables
A24: Hand soaps - 5 Litre | B24: Each | C24: 12 | E24: =D24 -> R 0.00 | F24: =E24*C24 -> R0.00
A25: Toilet paper per Bale - 1 Ply x 550 sheets per roll & 48 rolls per bale. Sheets size = 100mm x 110mm. 19gsm paper thickness. | B25: bale | C25: 120 | E25: R 0.00 | F25: R0.00
A26: Refuse Bags (Clear) | B26: No
A27: Large x 200 off | B27: Each | C27: 3 | E27: R 0.00 | F27: R0.00
A28: Medium x 200 off (750x900mm) | B28: Each | C28: 5 | E28: R 0.00 | F28: R0.00
A29: Small x 200 off | B29: Each | C29: 2 | E29: R 0.00 | F29: R0.00
A30: 300m Maslin Cloth x 1 off | B30: No | C30: 10 | E30: R 0.00 | F30: R0.00
A31: 400g Roll mutton cloth | B31: Each | C31: 10 | E31: R 0.00 | F31: R0.00
A32: Microfibre Cloths
A33: Green - Basins | B33: Each | C33: 10 | E33: R 0.00 | F33: R0.00 | G33: rate = price per single cloth
A34: Blue - Mirrors | B34: Each | C34: 10 | E34: R 0.00 | F34: R0.00 | G34: rate = price per single cloth
A35: Red - Bathrooms | B35: Each | C35: 10 | E35: R 0.00 | F35: R0.00 | G35: rate = price per single cloth
A36: Microfibre Sleeves | B36: Each | C36: 12 | E36: R 0.00 | F36: R0.00
A37: Vacuum Bags x 1 pack off 10 bags | B37: Each | C37: 3 | E37: R 0.00 | F37: R0.00
A38: Gloves (1 x pair) off (General purpose) | B38: Each | C38: 30 | E38: R 0.00 | F38: R0.00
A39: Gloves Nitrile/Industrial/heavy duty (dependent on no. of areas requiring the use thereof) (1x pair) | B39: Each | C39: 30 | E39: R 0.00 | F39: R0.00
A40: Dust Masks x 100 off | C40: 30 | E40: R 0.00 | F40: R0.00
A41: Auto flusher (site specific qty) | C41: 30 | E41: R 0.00 | F41: R0.00
A42: Urinal Matts | B42: Each | C42: 50 | E42: R 0.00 | F42: R0.00
A43: Total | F43: =SUM(F24:F42) -> R0.00
A45: Other - Masks (Covid-19) - type 1-box(50) | B45: Each | C45: 5 | E45: =D45 -> R 0.00 | F45: =E45*C45 -> R0.00
A46: Other - Masks (Covid-19) - type 2-box(50) | B46: Each | C46: 5 | E46: R 0.00 | F46: =E46*C46 -> R0.00
A47: Other - Pine Gel-5litre | B47: Each | C47: 5 | E47: R 0.00 | F47: R0.00
A48: Other - Chem Drain-5litre | B48: Each | C48: 10 | E48: =D48 -> R 0.00 | F48: =E48*C48 -> R0.00
A50: Provisional Sum for items that is not clarified. Permission of Service Manager iss Required. Contractor is allowed to add a 10% markup. Original invoice is required. | B50: Each | C50: 1 | E50: R 5,000.00 | F50: R5,000.00
A52: Total - Final | F52: =F20+F43+F45+F46+F50 -> R5,000.00
A53: · "Rate per Unit is to be net cost with no mark-up added
A54: · Therefore, the rate quoted in this schedule will be the same rate that will apply at invoicing"
A55: · ACSA reserves the right to replace any of the above items with a chemical of equivalent specifications
A56: · ACSA reserves the right to apply price and usage benchmarking/referencing in order to keep the prices in line with fair market pricing
A57: · All chemicals must be SANS approved
A58: · Items must be billed on proven/actual consumption cost
A59: Please note that ACSA reserves the right to revise the number of staff requirements in line with changing operational requirements.

Sheet HYGIENE
A1: 1.9 Hygiene services breakdown (Equipment owned by ACSA)
A2: CPI | B2: 0.00% | C2: 0.00% | D2: 0.00% | J2: 100
A3: Specification | B3: Consumable | C3: Quantity (Required) | D3: Monthly rate | E3: Monthly rate | F3: Total monthly cost | G3: Service Manager Comments (ACSA) | H3: Bidder Comments
A4: Sanitary Bins - Once a week- *Service and supply | B4: Included | C4: 40 | E4: =D4 -> R 0.00 | F4: =E4*C4 -> R 0.00
A5: General Bins - Once a week- *Service and supply | B5: Included | C5: 40 | E5: =D5 -> R 0.00 | F5: =E5*C5 -> R 0.00
A6: Oxy Air fresheners - 60 Day cycles – Service and supply | B6: Included | C6: 40 | E6: R 0.00 | F6: R 0.00
A7: Toilet seat sanitizer dispenser - wipes | B7: Included | C7: 65 | E7: R 0.00 | F7: R 0.00
A8: SHE Bin packet – Stainless steel dispensers | B8: Included | C8: 40 | E8: R 0.00 | F8: R 0.00
A9: Stainless steel Lockable TR5 toilet roll holder | B9: Excluded | C9: 65 | E9: R 0.00 | F9: R 0.00
A10: Anti Theft bracket Air freshner | B10: Included | C10: 40 | E10: R 0.00 | F10: R 0.00
A11: Foam soap dispenser | B11: Included | C11: 80 | E11: R 0.00 | F11: R 0.00
A12: Handdryer | B12: n/a | C12: 50 | E12: =D12 -> R 0.00 | F12: =E12*C12 -> R 0.00
A14: Provisional Sum for items that is not clarified. Permission of Service Manager iss Required. Contractor is allowed to add a 10% markup. Original invoice is required. | C14: 1 | D14: 0 | E14: R 10,000.00 | F14: =E14*C14 -> R 10,000.00
A15: Other - | D15: 0 | E15: R 0.00 | F15: =E15*C15 -> R 0.00 | G15: Bidder to specify clearly
A17: Total | D17: =SUM(D4:D15) -> R 0.00 | F17: =SUM(F4:F15) -> R 10,000.00
A19: *Bidders are requested to provide details of the product type and/or brand used for the servicing of the Sanitary Bins.
A20: *For SHE bins, the service provider is required to have a permit for legal disposal of bio hazardous waste
A21: *Contractor must submit a report (monthly with locations) from 3rd party outsourced service provider of the units which was servicesd as per the requirements defined. This will assist in the quantities claimed for

Sheet High Access Cleaning Equipment
A2: CPI | B2: 0.00% | C2: 0.00% | D2: 0.00% | J2: 100
A3: 1.10 Specialised Cleaning Equipment
A4: Specification | B4: Age | C4: Quantity of kits (Required) | D4: Pro rata Monthly rate / day | E4: Quantity of days / occurance (Required) | F4: Quantity of days / occurance (Actual) | G4: Pro rata Monthly rate / day | H4: Pro rata Monthly rate | I4: Quarterly rate | K4: Yearly rate | L4: Service Manager Comments (ACSA) | M4: Bidder Comments
A6: Rope access kit, equipment and PPE as required by OHS Act and SANS guidelines | B6: new | C6: 2 | E6: 2 | F6: 0 | G6: =D6 -> R 0.00 | H6: =G6*C6 -> R 0.00 | I6: =H6*3 -> R 0.00 | K6: =I6*4 -> R 0.00
A7: Total | I7: =SUM(I6) -> R 0.00
A8: · High access cleaning will be done qaurterly, for two days at a time which totals eight (8) days a year

Sheet High Access Cleaning Labour
A2: CPI | B2: 4.10% | C2: 3.20% | D2: 6.50%
A3: 1.11 High access cleaning Labour costs
A4: General Labour by Shift | B4: Hours per month per resource | C4: Resource rate / hour | D4: Resource rate / hour | E4: Total Amount per Resource per Month | G4: Number of Resources (Required) | H4: Number of Resources (Actual) | I4: Monthly Rate per Resource (Total amount per resource per month) | J4: Total monthly fee | K4: Service Manager Comments (ACSA) | L4: Bidder Comments
B5: (Required)
A7: Two days per quarter (06H00 - 18H00) | B7: 7.33 | D7: =C7 -> 0 | E7: =D7*B7 -> R 0.00 | G7: 2 | H7: 2 | I7: =+E7 -> R 0.00 | J7: =I7*H7 -> R 0.00
A12: Total | E12: =SUM(E7:E11) -> R 0.00 | J12: =SUM(J7:J11) -> R 0.00
A14: · High access cleaning will be done qaurterly, for two days at a time which totals eight (8) days a year
